Cogmind - Beta 15 @@@ ROGUE MODE // 2025.07.15 @ 09:52:40 Player: korgoth Result: Destroyed by DZ-RZQ(R) with Subdweller Machine Gun Performance ------------- Evolutions (0) 0 Regions Visited (3) 600 Robots Destroyed (11) 55 Value Destroyed (193) 193 Prototype IDs (0) 0 Alien Tech Used (0) 0 Bonus (0) 0 TOTAL SCORE: 848 Bonus ------- None Cogmind --------- Core Integrity 0/250 Matter 205/300 Energy 240/240 System Corruption 0% Temperature Cool (0) Movement Walking (120) Location -10/Subcaves Parts ------- > --- POWER (1) -------- Nuclear Core > --- PROPULSION (2) --- Carbon-fiber Leg Carbon-fiber Leg > --- UTILITY (2) ------ Medium Storage Unit Targeting Computer > --- WEAPON (2) ------- Barrage Gun > --- INVENTORY (10) --- Light Angular Momentum Engine Wheel Small Storage Unit Hardened Medium Armor Plating Hardened Medium Armor Plating Hacking Suite System Shield Peak State ------------ > --- POWER ------------ Nuclear Core > --- PROPULSION ------- Carbon-fiber Leg Carbon-fiber Leg > --- UTILITY ---------- Medium Storage Unit Targeting Computer > --- WEAPON ----------- Barrage Gun > --- INVENTORY -------- Light Angular Momentum Engine Wheel Small Storage Unit Hardened Medium Armor Plating Hardened Medium Armor Plating Hacking Suite System Shield [Rating: 15] Favorites ----------- Power Nuclear Core Engine Ion Engine Power Core Nuclear Core Propulsion Compact Wheel Leg Carbon-fiber Leg Wheel Compact Wheel Utility Medium Storage Unit Storage Medium Storage Unit Processor Targeting Computer Weapon Light Assault Rifle Energy Gun Small Laser Ballistic Gun Light Assault Rifle Launcher Rocket Launcher Build | -11 -10 -10 -10 ------- Run | Yrd Mat Min Sub Slots Evolved . | . . . . Power . | . . . . Propulsion . | . . . . Utility . | . . . . Weapon . | . . . . Parts Attached 20 | 5 5 6 4 Power 3 | . 1 2 . Engine 2 | . 1 1 . Core 1 | . . 1 . Reactor . | . . . . Propulsion 7 | 2 2 . 3 Treads . | . . . . Leg 2 | . . . 2 Wheel 5 | 2 2 . 1 Hover . | . . . . Flight . | . . . . Utility 3 | 1 1 1 . Device . | . . . . Storage 2 | 1 1 . . Processor 1 | . . 1 . Hackware . | . . . . Protection . | . . . . Artifact . | . . . . Weapon 7 | 2 1 3 1 Energy Gun 1 | . . 1 . Energy Cannon . | . . . . Ballistic Gun 5 | 2 1 1 1 Ballistic Cannon . | . . . . Launcher 1 | . . 1 . Special Weapon . | . . . . Impact Weapon . | . . . . Slashing Weapon . | . . . . Piercing Weapon . | . . . . Special Melee Weapon . | . . . . Unidentified Prototypes . | . . . . Parts Lost 6 | . 2 . 4 Power . | . . . . Propulsion 5 | . 2 . 3 Utility . | . . . . Weapon 1 | . . . 1 Highest Loss Streak 3 | . 2 . 3 To Critical Strikes . | . . . . Average Backups 8 | 3 7 9 9 Power 1 | 1 1 1 1 Propulsion 2 | 1 3 3 2 Utility 3 | . 1 3 5 Weapon 1 | . 1 1 . Tool/Special . | . . . . Unused Backups 9 | . . 3 6 Power 1 | . . . 1 Propulsion 3 | . . 2 1 Utility 4 | . . . 4 Weapon . | . . . . Tool/Special 1 | . . 1 . Average Slot Usage (%) 96 | . 75 100 97 Engine 3 | . 7 4 . Core 9 | . . 9 14 Wheel 26 | . 25 28 25 Storage 14 | . 14 14 14 Processor 12 | . . 14 14 Energy Gun 1 | . . 2 . Ballistic Gun 26 | . 28 25 26 Peak Build Rating 15 | 5 6 11 15 Average Rating 9 | 4 5 9 11 On Entrance 5 | . 5 6 11 Naked Turns . | . . . . Heaviest Build 24 | 7 17 20 24 Greatest Support 32 | 26 32 32 32 Greatest Overweight (x) 1 | . . . 1 Average Overweight (x) . | . . . . Largest Inventory Capacity 10 | 8 10 10 10 Average Capacity 9 | 7 9 10 10 Most Carried 10 | 7 8 10 10 Average Carried 8 | 3 7 9 9 Final Capacity 10 | 8 10 10 10 Final Carried 10 | 7 8 10 7 Class Distribution -------------------- 100% | Mutant Dominant Class ---------------- Mutant | -10/Materials Mutant | -10/Mines Mutant | -10/Subcaves Resources | -11 -10 -10 -10 ----------- Run | Yrd Mat Min Sub Matter Collected 453 | 270 44 103 36 Remotely . | . . . . Salvage Created 282 | 92 44 48 98 Parts 18 | 3 3 4 8 Haulers Intercepted . | . . . . Recyclers Shooed 1 | 1 . . . Parts Field Recycled . | . . . . Retrieved Matter . | . . . . Parts Self-Destructed . | . . . . Prevented . | . . . . Kills | -11 -10 -10 -10 ------- Run | Yrd Mat Min Sub Combat Hostiles Destroyed 9 | . 3 3 3 Guns 8 | . 3 3 2 AOE 1 | . . . 1 Classes Destroyed 4 | 2 1 . 1 Tunneler 1 | 1 . . . Recycler 1 | 1 . . . Swarmer 6 | . 3 3 . Subdweller 3 | . . . 3 Best Kill Streak 3 | 2 2 3 2 Combat Bots Only 3 | . 2 3 2 Max Kills in Single Turn 1 | 1 1 1 1 Gunslinging . | . . . . Exploded 1 | . . . 1 Melee . | . . . . Uniques/NPCs Destroyed . | . . . . Combat | -11 -10 -10 -10 -------- Run | Yrd Mat Min Sub Hostile Shots Fired 92 | . 34 14 44 Missed 21 | . 3 2 16 Hits 71 | . 31 12 28 Projectile 71 | . 31 12 28 AOE 1 | . . . 1 Critical Strikes 1 | . . . 1 Damage Taken 1015 | . 257 88 670 Core 265 | . 71 19 175 Absorbed by Shields . | . . . . Core Remaining (%) 100 | 100 . . . Volleys Fired 59 | 10 20 6 23 Largest 2 | 2 2 2 2 Hottest 61 | 40 40 60 61 Shots Fired 108 | 20 40 12 36 Gun 106 | 20 40 12 34 Cannon . | . . . . Launcher 2 | . . . 2 Special . | . . . . Kinetic 100 | 20 40 6 34 Thermal 6 | . . 6 . Explosive 2 | . . . 2 Electromagnetic . | . . . . Robot Hit Streak 18 | 5 4 3 18 Robot Miss Streak 6 | 2 6 5 3 Penetration Max . | . . . . Secondary Targets 1 | . . 1 . Max Gunslinging Chain 1 | . . 1 . Shots Hit Robots 59 | 12 13 5 29 Core Hits 19 | 4 5 3 7 Critical Kills . | . . . . Critical Parts Destroyed . | . . . . Critical Strikes 1 | . . . 1 Destroy 1 | . . . 1 Melee Attacks . | . . . . Impact . | . . . . Slashing . | . . . . Piercing . | . . . . Sneak Attacks . | . . . . Combat Hostiles . | . . . . Follow-up Attacks . | . . . . Damage Inflicted 771 | 98 145 44 484 Guns 554 | 98 145 44 267 Cannons . | . . . . Explosions 217 | . . . 217 Melee . | . . . . Ramming . | . . . . Kinetic 533 | 98 145 23 267 Thermal 21 | . . 21 . Explosive 217 | . . . 217 Electromagnetic . | . . . . Impact . | . . . . Slashing . | . . . . Piercing . | . . . . Highest Corruption . | . . . . Average Corruption . | . . . . Corruption Purged . | . . . . Corruption Blocked . | . . . . Overload Shots . | . . . . Overflow Damage 2 | . . . 2 Projectiles . | . . . . Explosions 2 | . . . 2 Melee . | . . . . Knockbacks . | . . . . Impact . | . . . . Kinetic . | . . . . Secondary . | . . . . Self-Inflicted Damage . | . . . . Shots . | . . . . Rammed . | . . . . Targets Rammed . | . . . . Kicked . | . . . . Crushed . | . . . . Highest Temperature 40 | . . 40 1 Average Temperature 17 | . . 18 1 Received Heat Transfer 90 | . . . 90 Siege Activations . | . . . . Martial Activations . | . . . . Shielding Activations . | . . . . Robots Disrupted . | . . . . Combat Hostiles . | . . . . Robots Corrupted . | . . . . Combat Hostiles . | . . . . Parts Fried . | . . . . Impact Corruptions . | . . . . Robots Melted . | . . . . Combat Hostiles . | . . . . Parts Melted . | . . . . Heat Transferred 50 | . . 50 . Parts Sabotaged . | . . . . Parts Stolen . | . . . . Parts Stripped . | . . . . Power Chain Reactions . | . . . . Alert | -11 -10 -10 -10 ------- Run | Yrd Mat Min Sub Maximum Alert Level . | . . . . Low Security (%) 100 | 100 100 100 . Level 1 . | . . . . Level 2 . | . . . . Level 3 . | . . . . Level 4 . | . . . . Level 5 . | . . . . High Security . | . . . . Max Security . | . . . . Peak Influence 60 | 10 50 60 . Initial . | . . . . Average 5 | . 15 4 . Influence Increases 162 | 10 82 70 . Destroy 0b10 Robot/C 120 | . 60 60 . Destroy 0b10 Robot/NC 10 | 10 . . . Destroy Leader 20 | . 10 10 . Successful Hack 12 | . 12 . . Influence Decreases 162 | 10 82 70 . Time Decay 150 | 10 70 70 . Lost Part 12 | . 12 . . Squads Dispatched . | . . . . Investigation . | . . . . Extermination . | . . . . Reinforcement . | . . . . Assault . | . . . . Garrison . | . . . . Intercept . | . . . . Searches Triggered . | . . . . Construction Impeded . | . . . . Haulers Reinforced . | . . . . Active Scanning Responses . | . . . . Cargo Convoy Interrupts . | . . . . Stealth | -11 -10 -10 -10 --------- Run | Yrd Mat Min Sub Distress Signals . | . . . . Communications Jammed . | . . . . Distress Signals . | . . . . Times Spotted 15 | . 5 3 7 Peak Tracking Total 3 | . 3 3 3 Tactical Retreats 2 | . . . 2 Traps | -11 -10 -10 -10 ------- Run | Yrd Mat Min Sub Traps Triggered . | . . . . Indirectly . | . . . . Trap Hack Attempts . | . . . . Triggered . | . . . . Disarmed . | . . . . Reprogrammed . | . . . . Reused . | . . . . Traps Extracted . | . . . . Installed . | . . . . Triggered . | . . . . Machines | -11 -10 -10 -10 ---------- Run | Yrd Mat Min Sub Machines Disabled . | . . . . Max in Single Turn . | . . . . Machines Repaired . | . . . . Machines Dismantled . | . . . . Machines Sabotaged . | . . . . Overloaded Fab Kills . | . . . . Hacking | -11 -10 -10 -10 --------- Run | Yrd Mat Min Sub Machines Accessed 3 | . 2 1 . Terminals 1 | . 1 . . Fabricators . | . . . . Repair Stations . | . . . . Recycling Units 1 | . 1 . . Scanalyzers . | . . . . Garrison Access . | . . . . Total Hacks 4 | . 3 1 . Successful 4 | . 3 1 . Failed . | . . . . Catastrophic . | . . . . Database Lockouts . | . . . . Manual . | . . . . Terminals 2 | . 2 . . Fabricators . | . . . . Repair Stations . | . . . . Recycling Units 1 | . 1 . . Scanalyzers . | . . . . Garrison Access . | . . . . Terminal Hacks 3 | . 2 1 . Open Door 1 | . . 1 . Branch Access Points 1 | . 1 . . Zone Layout 1 | . 1 . . Fabricator Hacks . | . . . . Repair Station Hacks . | . . . . Recycling Unit Hacks 1 | . 1 . . Report Inventory 1 | . 1 . . Scanalyzer . | . . . . Garrison Access Hacks . | . . . . Unauthorized Hacks . | . . . . Terminals . | . . . . Fabricators . | . . . . Repair Stations . | . . . . Recycling Units . | . . . . Scanalyzers . | . . . . Garrison Access . | . . . . Data Cores Recovered . | . . . . Used . | . . . . Hacking Detections . | . . . . Full Trace Events . | . . . . Feedback Events . | . . . . Feedback Blocked . | . . . . Robot Schematics Acquired . | . . . . Robots Built . | . . . . Authchips . | . . . . Time . | . . . . Total Robot Build Rating . | . . . . Part Schematics Acquired . | . . . . Parts Built . | . . . . Authchips . | . . . . Time . | . . . . Total Part Build Rating . | . . . . Parts Repaired . | . . . . Time . | . . . . Parts Recycled . | . . . . Recycled Matter . | . . . . Retrieved Matter . | . . . . Retrieved Components . | . . . . Parts Scanalyzed . | . . . . Part Schematics Acquired . | . . . . Parts Damaged . | . . . . Bothacking | -11 -10 -10 -10 ------------ Run | Yrd Mat Min Sub Used RIF Installer . | . . . . Robots Hacked . | . . . . Non-combat . | . . . . Combat . | . . . . Robot Hacks Applied . | . . . . Relay Couplers Released . | . . . . Fabnet Peak Effective % . | . . . . Robots Rewired . | . . . . Allies Hacked . | . . . . Hacks Repelled . | . . . . Allies | -11 -10 -10 -10 -------- Run | Yrd Mat Min Sub Total Allies . | . . . . Largest Group . | . . . . Highest-Rated Group . | . . . . Highest-Rated Ally . | . . . . Total Orders . | . . . . Ally Attacks . | . . . . Total Damage . | . . . . Kills . | . . . . Allies Corrupted . | . . . . Allies Melted . | . . . . Intel | -11 -10 -10 -10 ------- Run | Yrd Mat Min Sub Active Infowar (turns) . | . . . . Robot Analysis Total . | . . . . Derelict Logs Recovered 2 | . . 1 1 Drone Launches . | . . . . Drone Recoveries . | . . . . Exploration | -11 -10 -10 -10 ------------- Run | Yrd Mat Min Sub Turns Passed 1674 | 93 191 948 442 Spaces Moved 1414 | 59 134 846 375 Core 6 | 6 . . . Treads . | . . . . Legs 9 | . . . 9 Wheels 1399 | 53 134 846 366 Hover . | . . . . Flight . | . . . . Fastest Speed 50 | 50 90 100 90 Average Speed 97 | 85 95 100 95 Slowest Speed 120 | 90 100 100 120 Overloaded Moves . | . . . . Propulsion Burnouts . | . . . . Robots Hopped . | . . . . Potential Cave-ins . | . . . . Cave-ins Triggered . | . . . . Exploration Rate (%) 41 | 4 36 101 23 Regions Visited 3 Branch Regions 2 Pre-discovered Areas . | . . . . Known Exits Taken 1 | . 1 . . Unknown Exits Taken 2 | 1 . 1 . Scrap Searched 1 | . . 1 . Spaces Dug . | . . . . Terrain Destroyed 7 | . . . 7 Melee . | . . . . Projectile . | . . . . AOE 7 | . . . 7 Terrain Rammed . | . . . . Walls Destroyed . | . . . . Machines Disabled . | . . . . Actions | -11 -10 -10 -10 --------- Run | Yrd Mat Min Sub Total 1615 | 85 164 937 429 Wait 84 | . . 62 22 Move 1411 | 58 133 845 375 Hop . | . . . . Pick Up 29 | 12 5 10 2 Fast Attach . | . . . . Attach 12 | 5 3 1 3 Detach . | . . . . Swap 10 | . 2 6 2 Drop 10 | . 1 7 2 Fire 59 | 10 20 6 23 Melee . | . . . . Ram . | . . . . Kick . | . . . . Crush . | . . . . Escape Stasis . | . . . . Rewire . | . . . . Trap . | . . . . Miscellaneous . | . . . . Route ------- -11/Scrapyard -10/Materials -10/Mines (discovered 3 exits: *Mat x2 / [*Sub]) -10/Subcaves History --------- Turn | Location | Event 25 | -11/Scrapyard | Discovered new exit (range 16) 94 | -11/Scrapyard | Entered Materials 126 | -10/Materials | Identified exit to Mines 285 | -10/Materials | Entered Mines 300 | -10/Mines | Identified exit to Materials 306 | -10/Mines | Build established: Mutant 324 | -10/Mines | Received a Rocket Launcher from a helpful Derelict 368 | -10/Mines | Discovered exit to Materials (range 8) 402 | -10/Mines | Met a Derelict bent on vengeance 539 | -10/Mines | Met a Derelict who couldn't figure out how to use a Trap Extractor 903 | -10/Mines | Discovered new exit (range 6) 993 | -10/Mines | Joined a pair of Derelicts in attacking an 0b10 outpost 1233 | -10/Mines | Entered Subcaves 1234 | -10/Subcaves | Approached by a straggling Scientist 1237 | -10/Subcaves | Learned Materials terminal intel 1422 | -10/Subcaves | Shifting Twisted Machinery released Sub. Laser 1554 | -10/Subcaves | Core integrity fell below 50% 1625 | -10/Subcaves | Shifting Twisted Machinery released Barrage Gun 1641 | -10/Subcaves | Core integrity fell below 20% 1673 | -10/Subcaves | Lost 3 parts (2n1w) 1675 | -10/Subcaves | Destroyed by DZ-RZQ(R) with Subdweller Machine Gun Last Messages --------------- Acquired 1 matter. Subatomizers dissect the Lgt. Ion Engine. Barrage Gun falls loose from the Twisted Machinery. Dropped Lgt. Assault Rifle. Acquired Barrage Gun. Dropped Lgt. Assault Rifle. Wheel destroyed. Destroyed Sub. Optics. Com. Wheel destroyed. 27-S77(R) destroyed. Rocket Launcher destroyed. The unstable cave ceiling collapses. JP-O75(R) affixes Scrap Shield Fragment to Scrap Shield. JP-O75(R) suffers critical hit (Destroy). JP-O75(R) affixes Scrap Shield Fragment to Scrap Shield. JP-O75(R) destroyed. The unstable cave ceiling collapses. Map ----- +----------------------------------------------------+ | ??????????????????????????????????# ##? | | ??????????????????????????????????# #?? | | ??????????????????????????????????# #?? | | ??????????????????????????????????## #?? | | ???????????????????????????????????## ##?? | | ??????????????????????????????"?????# # ##??? | | ???????????????????????????????"???## # ##??? | | ???????????????????????????????? ??# # ###? | | ???????????????????????????????## ## #? | | ???????????????????????????????# #" ##? | | ???????????????????????????????# ###?? | | ???????????????????????????????# ##???? | | ???????????????????????????????# #"" ###????? | | ???????????????????????????????#####" ####??????? | | ???????????????????????????????????# #####?????? | | ?????????????????####??????????????## ## ##????? | | ?????????????????# ###???????##?### ## #????? | | ??????????????????# ##?????##### ####?? | | ???????????????????# #???## """" #?? | | ????????????????????# ##### " " ##?? | | ????????????????????## ;;# R* " "# ## | | ?????????????????????# &% ] # | | ?????????????????????# !%[ """"" "" | | ?????????????????????## & """" | | ??????????????????????#; # ##""""" | | ??????????????????????##;@[ "#### """#####"""" | | ???????????????????????#; [ ##?# """#???##""" | | ???????????????????????#; ;#??# """"?????# " | | ???????????????????????#;; ;;#??#?###?????????? | | ???????????????????????#### ###????????????????? | | ??????????????????????????# #??????????????????? | | ??????????????????????????# ??????????????????? | | ?????????????????????????? ##?????????????????? | | ?????????????????????????? # ??????????????????? | | ??????????????????????????#? ##?????????????????? | | ???????????????????????????? #??????????????????? | | ????????????????????????????""#??????????????????? | | ????????????????????????????##"??????????????????? | | ?????????????????????????????????????????????????? | | ?????????????????????????????????????????????????? | | ?????????????????????????????????????????????????? | | ?????????????????????????????????????????????????? | | ?????????????????????????????????????????????????? | | ?????????????????????????????????????????????????? | | ?????????????????????????????????????????????????? | | ?????????????????????????????????????????????????? | | ?????????????????????????????????????????????????? | | ?????????????????????????????????????????????????? | | ?????????????????????????????????????????????????? | | ?????????????????????????????????????????????????? | +----------------------------------------------------+ Best States ------------- Heat Dissipation 25 Energy Generation 14 Energy Capacity 250 Matter Stores 300 Matter Capacity 300 Sight Range 16 Terrain Scan Density 10 Evasion (%) 42 Targeting Accuracy 5 Item Schematics ----------------- None Robot Schematics ------------------ None Fabricated ------------ Nothing Repaired ---------- Nothing Alien Tech Used ----------------- None Achievements -------------- None Challenges ------------ None Game ------ Seed ShockCentriumTether Manual? 0 Play Time 00:18:22 Cumulative 65.9 hours Start 2025.07.15 @ 09:34:03 End 2025.07.15 @ 09:52:40 Sessions 1 Manual Loads 0 Difficulty Rogue Special Mode None Game No. 64 Rogue 54 Adventurer 10 Explorer 0 Win Type - Total 1 Types 1/0/0/0/0/0/0/0/0/0 Lore% 28 Gallery% 39 Achievement% 32 Wizard Run 0 Options --------- Layout 1 ASCII 0 Keyboard 0 Movement Numpad Keybinds 0 Fullscreen 1 Font 24/Smallcaps Map View 50x35 Zoom Use 0% Tactical HUD 0 Map Filters NONE Filters NONE Steam 1 RUN: b01488a6-9791-45ab-bd31-b2daafa6a6fe